[Event "Prague Festival-Futures 2022"]
[Site "Prague"]
[Date "2022.06.08"]
[Round "1.1"]
[White "Peglau, Charis"]
[Black "Tolmacevs, Artjoms"]
[Result "0-1"]
[ECO "A06"]
[WhiteElo "2008"]
[BlackElo "2087"]
[Annotator "TA"]
[PlyCount "132"]
[EventDate "2022.06.07"]
[EventType "tourn"]
[EventCountry "CZE"]
[SourceTitle "playchess.com"]
[Source "ChessBase"]
[SourceQuality "1"]
[TimeControl "40/5400+30:1800+30"]

{[%evp 9,132,2,10,4,21,-49,-42,-51,-54,-54,-53,-71,-56,-60,-45,-80,-75,-79,-79,-84,-84,-100,-97,-126,-89,-94,-105,-95,-79,-83,-53,-57,-63,-66,-62,-62,-69,-57,-63,-68,-48,-97,-99,-99,-99,-113,-81,-183,-183,-164,-162,-185,-131,-121,-170,-222,-237,-229,-229,-218,-165,-220,-190,-211,-202,-195,-205,-199,-85,-101,0,-35,-50,-43,0,0,0,0,0,-186,-182,-210,-189,-211,-215,-290,-293,-354,-331,-376,-344,-467,-423,-402,-304,-562,-541,-667,-655,-29961,-29966,-29969,-868,-758,0,-29971,-29972,-29973,-29974,-29974,-29975,-29974,-29975,-29975,-29977,-29976,-29978,-29977,-29979,-29978,-29979,-29980,-29981,-29981,-29982]} 1. Nf3 {[%emt 0:00:03]} c5 {[%emt 0:00:09]} 2. b3 {[%emt 0:00:10]} d5 {[%emt 0:06:09]} 3. Bb2 {[%emt 0:00:34]} e6 {[%emt 0:03:00]} 4. e3 {[%emt 0:00:34]} Nf6 {[%emt 0:01:00]} 5. Be2 {[%emt 0:01:52]} Nc6 {[%emt 0:00:52]} 6. O-O {[%emt 0:00:42] A06: Réti Opening: 1 Nf3 d5.} Bd6 {[%emt 0:08:29]} (6... b6 {is interesting.} 7. Bb5 Bb7 8. Ne5 Rc8) 7. d3 {[%emt 0:06:56]} (7. d4 $11) 7... e5 $15 {[%emt 0:06:59]} 8. Nbd2 {[%emt 0:03:04] Black is slightly better.} O-O {[%emt 0:09:15]} 9. e4 {[%emt 0:08:54]} d4 {[%emt 0:06:18]} 10. Nc4 {[%emt 0:01:10]} Bc7 {[%emt 0:08:46]} 11. a4 {[%emt 0:02:20]} b6 {[%emt 0:11:23] [#]} 12. h3 $146 {[%emt 0:03:09]} ({Predecessor:} 12. Bc1 h6 13. Bd2 a6 14. Ne1 Rb8 15. h3 Be6 16. Bg4 Nxg4 17. hxg4 f6 {½-½ (17) Henzelmann,K (2105)-Rufft,W (2135) Wetzlar 2009}) 12... a6 {[%emt 0:03:22][%cal Ba7a6,Ba6b5][%mdl 32]} 13. Nh2 {[%emt 0:02:29]} Rb8 {[%emt 0:01:26]} 14. Bc1 {[%emt 0:07:57]} b5 {[%emt 0:00:56]} 15. axb5 {[%emt 0:00:16]} axb5 {[%emt 0:00:11]} 16. Nb2 {[%emt 0:02:04]} Be6 {[%emt 0:04:52]} 17. Bg5 {[%emt 0:01:43]} h6 {[%emt 0:06:45]} 18. Bh4 {[%emt 0:01:51]} Bd6 {[%emt 0:02:11]} 19. Bg4 {[%emt 0:04:12]} Bxg4 {[%emt 0:02:36]} 20. Nxg4 {[%emt 0:00:08]} Be7 {[%emt 0:00:26]} 21. Bxf6 {[%emt 0:03:57]} Bxf6 {[%emt 0:00:07]} 22. Ra6 {[%emt 0:04:18]} Rc8 {[%emt 0:00:49]} 23. Nxf6+ {[%emt 0:04:55]} Qxf6 {[%emt 0:00:07]} 24. Qd2 {[%emt 0:01:19]} Qd8 {[%emt 0:04:33]} 25. f4 {[%emt 0:10:34]} (25. Rfa1 $15) 25... Nb4 {[%emt 0:00:50]} 26. Raa1 {[%emt 0:00:41]} exf4 {[%emt 0:02:00]} 27. Rxf4 {[%emt 0:01:02]} Ra8 {[%emt 0:00:36]} 28. Rc1 {[%emt 0:17:39]} (28. Rxa8 $17 {was worth a try.} Qxa8 29. c3 dxc3 30. Qxc3) 28... Ra2 $19 {[%emt 0:01:46]} 29. Nd1 {[%emt 0:00:07]} Qg5 {[%emt 0:02:24][%cal Ob4d3] Threatens to win with ...Nxd3!} 30. h4 {[%emt 0:01:25]} Qg3 {[%emt 0:01:04]} (30... Qe7 $19 31. Nf2 Rc8) 31. Rf5 $17 {[%emt 0:04:52]} Rc8 {[%emt 0:03:33] Black is much more active. The white rooks are badly placed.} ({But not} 31... Qxh4 $6 32. Rxc5 Na6 33. Rd5 $11) 32. Nf2 {[%emt 0:02:17]} (32. h5 $142) 32... Qxh4 $19 {[%emt 0:01:08]} 33. Rf4 {[%emt 0:01:05]} Qg3 {[%emt 0:00:53] ...Qe3 is the strong threat.} 34. Rf3 {[%emt 0:00:28]} Qg5 {[%emt 0:00:12]} 35. Qd1 {[%emt 0:00:14]} (35. Qxg5 $142 hxg5 36. c4) 35... g6 {[%emt 0:01:10]} 36. Nh3 {[%emt 0:00:15]} Qe7 {[%emt 0:00:23]} 37. Nf4 {[%emt 0:01:09]} Rca8 {[%emt 0:00:54]} 38. Rf1 {[%emt 0:01:16]} Rb2 {[%emt 0:00:30]} (38... Qe5 $19 {and Black stays clearly on top.} 39. Qf3 Nxc2) 39. Qf3 {[%emt 0:01:01][%cal Oe4e5]} Raa2 {[%emt 0:00:32]} ({Black should try} 39... Ra7 $17 40. Nd5 Nxd5 41. exd5 Rba2) 40. Nd5 {[%emt 0:00:00]} (40. e5 $5) 40... Nxd5 {[%emt 0:00:00]} 41. exd5 {[%emt 0:00:59][%cal Be4d5,Bd5d6][%mdl 32]} Rxc2 {[%emt 0:00:17]} 42. Rxc2 {[%emt 0:00:16]} Rxc2 $15 {[%emt 0:00:08][%mdl 4096] Endgame KQR-KQR} 43. d6 $1 {[%emt 0:00:34]} Qd7 {[%emt 0:09:02] White must now prevent ...Ra2.} (43... Qxd6 {is a self mate.} 44. Qxf7+ Kh8 45. Qe8+) 44. Qd5 $2 {[%emt 0:12:02] White is on the road to losing.} (44. Qa8+ $1 $11 {and White is okay.} Kg7 45. Qb8) 44... Re2 $1 $19 {[%emt 0:00:23]} 45. Qxc5 {[%emt 0:04:30]} Re6 $1 {[%emt 0:00:12][%cal Be2e6,Be6d6,Bd6d5,Bd5g5][%mdl 32]} 46. Qc7 {[%emt 0:05:26]} Rxd6 {[%emt 0:00:34]} 47. Qc1 {[%emt 0:02:37]} Kg7 {[%emt 0:02:27]} 48. Qf4 {[%emt 0:02:36]} Qe6 {[%emt 0:03:04]} 49. Rf3 {[%emt 0:00:29]} Rd5 {[%emt 0:01:40]} 50. g4 {[%emt 0:02:01]} Rg5 {[%emt 0:03:50]} 51. Qxd4+ {[%emt 0:00:20]} Kh7 {[%emt 0:00:02]} 52. Rf4 {[%emt 0:01:37]} (52. Kh2 {keeps fighting.}) 52... h5 {[%emt 0:00:54][%cal Bh6h5,Bh5g4,Bg4g3][%mdl 32]} 53. Kf2 {[%emt 0:03:59]} hxg4 {[%emt 0:04:32] And now ...f5 would win.} 54. b4 {[%emt 0:00:44]} g3+ {[%emt 0:00:08]} 55. Kf3 {[%emt 0:00:11]} Qc6+ {[%emt 0:01:26]} (55... g2 $142 56. Rh4+ Rh5 57. Kxg2 Qe2+ 58. Kh3 Qf3+ 59. Kh2 Rxh4+ 60. Qxh4+ Qh5 61. Qxh5+ gxh5 62. Kh3 Kg6 63. Kg3 Kg5 64. Kg2 f5 65. Kg3 h4+ 66. Kf3 f4 67. Ke4 h3 68. Kf3 Kf5 69. d4 Ke6 70. Kf2 Kd5 71. Kf3 Kxd4 72. Kxf4 h2 73. Kf5 h1=Q 74. Ke6 Qc6+ 75. Kf5 Qd6 76. Kg4 Qf6 77. Kh5 Ke3 78. Kg4 Qg6+ 79. Kh4 Kf3 80. Kh3 Qh7#) 56. Ke3 {[%emt 0:00:27]} Qe6+ {[%emt 0:03:20]} (56... f5 57. Rh4+ Rh5 58. Qa7+ Kh6) (56... Qe8+ $19 57. Kf3 Qa8+ 58. Ke3 Kg8) 57. Kf3 {[%emt 0:00:33]} g2 {[%emt 0:07:22] Black mates.} 58. Rh4+ {[%emt 0:00:09]} Rh5 {[%emt 0:00:01]} 59. Kxg2 {[%emt 0:00:25]} Qe2+ {[%emt 0:00:18]} 60. Kh3 {[%emt 0:00:38]} Qf3+ {[%emt 0:00:58]} 61. Kh2 {[%emt 0:00:10] [#]} Rxh4+ $1 {[%emt 0:00:25]} 62. Qxh4+ {[%emt 0:00:05] [#]} Qh5 $1 {[%emt 0:00:04]} 63. Kg3 {[%emt 0:00:35]} Qxh4+ {[%emt 0:00:07]} 64. Kxh4 {[%emt 0:00:01]} f5 {[%emt 0:00:12]} 65. Kg5 {[%emt 0:01:20]} Kg7 {[%emt 0:00:01]} 66. d4 {[%emt 0:00:58]} Kf7 {[%emt 0:00:06] Weighted Error Value: White=0.44/Black=0.33} 0-1

[Event "Prague Festival-Futures 2022"]
[Site "Prague"]
[Date "2022.06.08"]
[Round "1.2"]
[White "Bouska, Jiri"]
[Black "Zelbova, Lada"]
[Result "1-0"]
[ECO "A04"]
[WhiteElo "2117"]
[BlackElo "1967"]
[Annotator "TA"]
[PlyCount "75"]
[EventDate "2022.06.07"]
[EventType "tourn"]
[EventCountry "CZE"]
[SourceTitle "playchess.com"]
[Source "ChessBase"]
[SourceQuality "1"]
[TimeControl "40/5400+30:1800+30"]

{[%evp 9,75,-10,0,-12,-9,-37,-38,-56,-40,-62,-45,-51,-36,-112,-96,-100,-93,-125,-64,-89,-74,-77,-69,-84,-79,-101,-8,-95,-22,-35,-24,-60,-32,-43,-39,-31,-14,-43,0,-46,2,2,9,19,16,11,52,38,494,489,816,804,788,637,603,186,787,775,1312,1053,987,546,514,497,791,791,914,899]} 1. Nf3 {[%emt 0:00:30]} c5 {[%emt 0:00:42]} 2. g3 {[%emt 0:00:07]} Nc6 {[%emt 0:01:19]} 3. Bg2 {[%emt 0:00:20]} g6 {[%emt 0:02:16]} 4. d4 {[%emt 0:01:35]} cxd4 {[%emt 0:00:22]} 5. Nxd4 {[%emt 0:00:12]} Bg7 {[%emt 0:00:19]} 6. Be3 {[%emt 0:01:00] A04: Unusual lines after 1 Nf3 and King's Indian Attack.} Nf6 {[%emt 0:06:24]} 7. h3 {[%emt 0:00:52] Prevents Ng4.} d5 {[%emt 0:03:51]} 8. O-O {[%emt 0:01:23][%cal Oc2c4] Black is slightly better.} O-O {[%emt 0:07:17] [#]} 9. c4 $146 {[%emt 0:10:39]} ({Predecessor:} 9. Nd2 e5 10. Nxc6 bxc6 11. c3 Qc7 12. b4 d4 13. cxd4 Nd5 14. Bxd5 cxd5 15. Nb3 Bxh3 {½-½ (26) Doye,P (2322)-Jones,I (2197) ICCF email 2015}) 9... Nxd4 {[%emt 0:08:15]} 10. Bxd4 {[%emt 0:00:57]} (10. Qxd4 $2 Ng4 $1 {[%mdl 512]} 11. Qd2 Nxe3 12. fxe3 dxc4 13. Qxd8 Rxd8 $19) 10... dxc4 {[%emt 0:02:07]} 11. e4 {[%emt 0:02:29]} (11. Na3 $15) 11... Be6 $17 {[%emt 0:03:16]} 12. Nc3 {[%emt 0:01:26]} Qc8 {[%emt 0:06:58] Hoping for ...Rd8.} 13. e5 {[%emt 0:03:04] [#]} Nd7 {[%emt 0:01:51]} (13... Rd8 $1 $17 {[%cal Oe6h3]} 14. Kh2 (14. exf6 $2 Bxf6 15. Nb5 a6 $19) 14... Nd5) 14. f4 {[%emt 0:05:07]} Rd8 {[%emt 0:02:55]} 15. Qf3 {[%emt 0:07:35]} Nc5 {[%emt 0:03:56]} 16. Be3 {[%emt 0:00:24]} Nd3 {[%emt 0:02:38]} 17. g4 {[%emt 0:00:51]} Kf8 {[%emt 0:16:41]} (17... Nxb2 18. f5 $11) (17... Bd7 $17 {Strongly threatening ...Bc6.} 18. Qxb7 Qxb7 19. Bxb7 Rab8) 18. Qg3 {[%emt 0:02:10]} (18. Qxb7 Qxb7 19. Bxb7 Rab8 $17) (18. f5 $11 Nxe5 19. Qf4 (19. Qxb7 Rb8 $17)) 18... g5 {[%emt 0:02:32]} (18... Nxb2 19. Rab1 Nd3 20. Bxb7 $16) (18... Qc7 $1 $17 19. Qh4 Kg8) 19. fxg5 $11 {[%emt 0:03:02]} Nxe5 {[%emt 0:01:05]} (19... Bxe5 20. Qh4 Qc7 21. Qxh7) (19... Bxe5 20. Qh4 Qc7 21. Qxh7 $16) 20. Qh4 {[%emt 0:02:10]} Kg8 {[%emt 0:01:06]} 21. Be4 {[%emt 0:00:24] Against Rd3} Ng6 {[%emt 0:00:45]} 22. Qf2 {[%emt 0:00:49]} Rf8 {[%emt 0:03:04]} 23. Bf5 {[%emt 0:07:04]} (23. Bxa7 $2 Bxg4 $1 {[%mdl 512]} 24. Bd4 (24. hxg4 $2 Qxg4+ 25. Qg2 Qxg2+ 26. Kxg2 Rxa7 $19) 24... Bxh3 25. Bxg7 Kxg7 $19) 23... Ne5 {[%emt 0:02:39]} (23... Qc7) 24. Rad1 {[%emt 0:11:14]} (24. Qh4 $11 Bxf5 25. gxf5) 24... Qc6 {[%emt 0:04:37]} (24... Qc7 $15 {was preferrable.}) 25. Be4 {[%emt 0:00:53]} (25. Bxa7 $2 Bxf5 26. gxf5 Nd3 $19) 25... Qc7 {[%emt 0:02:29]} 26. Nb5 {[%emt 0:06:18][%cal Bc3b5,Bb5d4,Bd4f5][%mdl 32]} (26. Bxa7 Nd3 27. Qh4 (27. Bxd3 cxd3 28. Bb6 Qc4 $15) 27... Rfd8 28. Qxh7+ (28. Nb5 $2 Qe5 $19) 28... Kf8) 26... Qa5 {[%emt 0:03:34]} 27. Nd4 {[%emt 0:00:17]} (27. Nxa7 f6 28. Bd4 (28. Bxb7 fxg5 29. Bxa8 Rxf2 $17) (28. Qh4 $2 Ng6 $19) 28... fxg5 $17) (27. Qh4 $2 Ng6 28. Bxg6 fxg6 $19) 27... Rad8 {[%emt 0:01:46]} (27... Bd5 28. Nb3 $1 cxb3 29. Rxd5 $16) 28. Nf5 $1 {[%emt 0:00:41]} (28. Bxb7 Nd3 29. Rxd3 cxd3 $19) (28. Qh4 Ng6 29. Qe1 Qxe1 30. Rfxe1 Nf4 $1 31. Nxe6 Nxe6 $15) 28... Bxf5 {[%emt 0:02:25][%mdl 8192] This costs Black the game.} (28... Ng6 $14) 29. Qxf5 $18 {[%emt 0:00:41][%csl Ge4][%cal Rf5h7]} Rfe8 {[%emt 0:02:28]} (29... Nf3+ $142 30. Qxf3 Rxd1) 30. Qxh7+ {[%emt 0:00:07]} (30. Bd4 Rxd4 $1 31. Rxd4 (31. Qxh7+ $2 Kf8 $19) 31... Qb6 $17) 30... Kf8 {[%emt 0:00:04]} 31. g6 {[%emt 0:00:43] Intending Bh6 and mate.} (31. Bd4 $2 {[#]} Rxd4 $1 {[%mdl 512]} 32. Rxd4 Qb6 $19) 31... Rxd1 {[%emt 0:04:15]} 32. Rxd1 $40 {[%emt 0:00:04][%mdl 128] White wants a kill.} (32. Bh6 {[%csl Gh7][%cal Rh6g7]} Rxf1+ 33. Kxf1) 32... Rd8 $2 {[%emt 0:00:35]} (32... Nxg6 33. Bxg6 (33. Bxb7 Qe5 $17) 33... Qe5) 33. Rf1 {[%emt 0:00:23] White is clearly winning.} Rd3 {[%emt 0:01:33]} 34. Bxd3 {[%emt 0:02:04]} cxd3 {[%emt 0:00:05]} 35. gxf7 {[%emt 0:00:18]} Nxf7 {[%emt 0:01:51]} 36. Qxd3 {[%emt 0:00:13] And now g5 would win.} Qc7 {[%emt 0:00:00]} (36... Bxb2 $142 37. h4 Qc7 38. Bxa7 (38. Rxf7+ Kxf7 39. Bxa7 Kg7 $18) 38... b5) 37. Rf3 {[%emt 0:05:43]} Kg8 {[%emt 0:00:23]} 38. Qd5 {[%emt 0:00:33] Weighted Error Value: White=0.58/Black=0.52} 1-0

[Event "Prague Festival-Futures 2022"]
[Site "Prague"]
[Date "2022.06.08"]
[Round "1.3"]
[White "Kuru, Atilla"]
[Black "Balint, Peter"]
[Result "1-0"]
[ECO "C36"]
[WhiteElo "2023"]
[BlackElo "2097"]
[Annotator "TA"]
[PlyCount "101"]
[EventDate "2022.06.07"]
[EventType "tourn"]
[EventCountry "CZE"]
[SourceTitle "playchess.com"]
[Source "ChessBase"]
[SourceQuality "1"]
[TimeControl "40/5400+30:1800+30"]

{[%evp 16,101,-18,-39,-25,-51,-24,-50,-41,-40,-46,-54,-53,-122,-75,-83,-73,-80,-85,-91,-83,-85,-69,-103,-83,-79,-48,-51,-42,-49,-33,-50,-16,-30,-15,-21,14,14,20,3,47,0,0,0,0,0,9,11,2,0,217,225,217,217,217,217,217,217,247,247,300,255,29970,29971,29970,29972,29974,29974,29974,29975,29976,29977,29978,29979,29979,29979,29979,29977,29981,29982,29982,29983,29983,29984,29984,29985,29985,29986]} 1. e4 {[%emt 0:00:04]} e5 {[%emt 0:00:07]} 2. f4 {[%emt 0:00:08]} exf4 {[%emt 0:00:08]} 3. Nf3 {[%emt 0:00:06]} d5 {[%emt 0:00:16]} 4. exd5 {[%emt 0:00:07]} Nf6 {[%emt 0:00:04]} 5. Bb5+ {[%emt 0:00:09]} c6 {[%emt 0:00:06]} 6. dxc6 {[%emt 0:00:05]} Nxc6 {[%emt 0:00:07]} 7. d4 {[%emt 0:00:17]} Bd6 {[%emt 0:00:12]} 8. O-O {[%emt 0:00:14]} O-O {[%emt 0:01:18]} 9. Nbd2 {[%emt 0:01:24] 9.c3 injects fresh life into this line.} Bg4 {[%emt 0:15:59] C36: King's Gambit Accepted: 3 Nf3 d5.} 10. Nc4 {[%emt 0:01:13]} Re8 {[%emt 0:25:59]} 11. Bxc6 {[%emt 0:04:06]} bxc6 {[%emt 0:00:14] Black is slightly better.} 12. Qd3 {[%emt 0:03:05]} Bc7 {[%emt 0:09:55]} 13. Nfe5 {[%emt 0:18:48]} Bf5 {[%emt 0:05:56] [#] This bishop pair is nice.} 14. Qd1 $146 {[%emt 0:20:59] [#]} (14. Qd2 c5 15. Rxf4 Be6 16. Ne3 cxd4 17. Rxd4 Qb8 18. Nf3 Bb6 19. b3 Bxd4 20. Nxd4) ({White should try} 14. Qxf5 $15 Qxd4+ 15. Kh1 Bxe5 16. Nxe5 Rxe5 17. Qxf4) ({Predecessor:} 14. Qd2 c5 15. Rxf4 Be6 16. Ne3 cxd4 17. Rxd4 Qb8 18. Nf3 Bb6 19. b3 Bxd4 20. Nxd4 {0-1 (36) Perez,G (1905)-Foy,J (1469) IECG email 2002}) 14... Bxc2 $1 {[%emt 0:06:33][%mdl 512]} 15. Qxc2 $17 {[%emt 0:00:06]} Qxd4+ {[%emt 0:00:05]} 16. Kh1 {[%emt 0:00:07]} Bxe5 {[%emt 0:00:34]} 17. Nxe5 {[%emt 0:02:14]} Qxe5 {[%emt 0:01:31]} 18. Bxf4 {[%emt 0:00:22]} Qe6 {[%emt 0:01:41]} 19. Qf2 {[%emt 0:04:59]} Nd5 {[%emt 0:03:28]} 20. Bg3 {[%emt 0:01:22]} f6 {[%emt 0:04:53]} 21. Rfe1 {[%emt 0:00:53]} Qd7 {[%emt 0:01:37]} 22. Qc5 {[%emt 0:00:17]} a6 {[%emt 0:06:33]} 23. Qc4 {[%emt 0:01:53]} a5 {[%emt 0:04:11]} 24. Rac1 {[%emt 0:00:46]} Rxe1+ {[%emt 0:01:40]} 25. Bxe1 {[%emt 0:00:02]} Re8 {[%emt 0:02:15]} 26. Bxa5 {[%emt 0:00:21]} Re6 {[%emt 0:00:05]} 27. a4 {[%emt 0:01:41]} h5 {[%emt 0:04:27]} (27... Ne3 {with more complications.} 28. Qb3 Kf7 29. h3 Qd5) 28. b4 {[%emt 0:02:13]} (28. Bd2 $14 {is superior.}) 28... Ne3 $11 {[%emt 0:01:33]} 29. Qb3 {[%emt 0:00:49]} Kh8 {[%emt 0:00:20]} 30. b5 {[%emt 0:01:12] bxc6 is the strong threat.} cxb5 {[%emt 0:01:08]} 31. Qxb5 {[%emt 0:01:13]} Qf7 {[%emt 0:01:12]} 32. Bb6 {[%emt 0:01:52] Hoping for Rc8+.} (32. Qd3 {is more complex.} Qb7 33. Qe2 Qd5 34. Bc3) 32... Qe8 {[%emt 0:01:28] Against Rc8. Black is now going downhill.} (32... Nxg2 $11 33. Kxg2 (33. Rc8+ Kh7 $11) 33... Qb7+ 34. Kf2 Rxb6 35. Qxh5+ Kg8 36. Qe8+ Kh7 37. Qh5+ Kg8 38. Qe8+ Kh7 39. Qh5+ Kg8) 33. Qxe8+ $18 {[%emt 0:01:00]} Rxe8 {[%emt 0:00:04][%mdl 4096] Endgame KRB-KRN} 34. Re1 {[%emt 0:00:05]} Ra8 {[%emt 0:00:11]} 35. Bxe3 {[%emt 0:00:20] Black must now prevent Ra1.} Rxa4 {[%emt 0:00:03] KRB-KR} 36. Rf1 {[%emt 0:00:53]} Kg8 {[%emt 0:01:09]} 37. Rf5 {[%emt 0:00:24]} h4 {[%emt 0:00:16]} 38. Rf4 {[%emt 0:00:33]} Rxf4 {[%emt 0:01:12]} (38... Ra3 $18 39. Bg1 h3) 39. Bxf4 {[%emt 0:00:05] KB-K3P. White mates.} Kf7 {[%emt 0:00:04]} 40. Kg1 {[%emt 0:00:00]} Ke6 {[%emt 0:00:00]} 41. Kf2 {[%emt 0:00:16]} Kf5 {[%emt 0:05:00]} 42. Kf3 {[%emt 0:00:22]} g5 {[%emt 0:00:08]} 43. Bd2 {[%emt 0:00:48]} Kg6 {[%emt 0:02:25]} 44. Ke4 {[%emt 0:00:14]} f5+ {[%emt 0:00:32]} 45. Ke5 {[%emt 0:00:05]} f4 {[%emt 0:01:13] [#]} 46. Bxf4 $1 {[%emt 0:00:10]} h3 {[%emt 0:01:50] [#]} (46... Kh5 47. Bd2) 47. g4 $1 {[%emt 0:00:17][%cal Bg2g4,Bg4g5][%mdl 32]} gxf4 {[%emt 0:00:41]} 48. Kxf4 {[%emt 0:00:03]} Kf6 {[%emt 0:00:23]} 49. g5+ {[%emt 0:00:04]} Kf7 {[%emt 0:00:21]} 50. Kg3 {[%emt 0:00:19]} Kg6 {[%emt 0:00:20]} 51. Kg4 {[%emt 1:06:55] Weighted Error Value: White=0.07 (flawless) /Black=0.40} 1-0